Workbook

Sheet Hoja3
A4: AUTORIDAD PARA EL MANEJO SUSTENTABLE DE LA CUENCA Y DEL LAGO DE AMATITLÁN
A5: NOMINA CORRESPONDIENTE AL MES DE DICIEMBRE 2017
A6: NÚMERO 28-2017
A7: RENGLÓN 031 "JORNALES"
B9: SOLICITUD DE PAGO
A11: SUBPRODUCTO: DIRECCIÓN Y COORDINACIÓN 001-001-0001
A12: 11130016-219-00-33-00-000-001-000-031-0115-11-0000-0000
A15: No. | B15: Titulo Jornal Diario | C15: Empleado | D15: Contrato | E15: Fecha de Ingreso | F15: Jornal | G15: Días | H15: Renglón 031 | I15: Renglón 033 | J15: Renglón 033 | K15: Total Devengado Mensual | L15: Deducciones | O15: Total Deducciones | P15: Liquido
L16: 201 | M16: 211 | N16: 120
H17: Jornales | I17: Bono 66-2000 | J17: complemento específico por nivelación | L17: IGSS | M17: Retenciones Judiciales | N17: Decreto 81-70
A18: 1 | B18: Constructor de Puentes | C18: Gladis Mirtala Ramírez Sánchez | D18: 01-2017-031-AMSA | E18: 2008-01-02 | F18: 80.86 | G18: 31 | H18: =F18*G18 -> 2506.66 | I18: 250 | J18: =6.04*G18 -> 187.24 | K18: =SUM(H18:J18) -> 2943.9 | L18: =ROUND((H18+J18)*4.83%,2) -> 130.12 | M18: 0 | N18: 0 | O18: =SUM(L18:N18) -> 130.12 | P18: =+K18-O18 -> 2813.78
A19: 2 | B19: Constructor de Puentes | C19: Vidal Cruz Martínez | D19: 02-2017-031-AMSA | E19: 2002-02-02 | F19: 80.86 | G19: 31 | H19: 2506.66 | I19: 250 | J19: 187.24 | K19: 2943.9 | L19: 130.12 | M19: 0 | N19: 0 | O19: 130.12 | P19: 2813.78
A20: 3 | B20: Constructor de Puentes | C20: Victorina de Jesús Peralta Peralta | D20: 03-2017-031-AMSA | E20: 01/10/2014 | F20: 80.86 | G20: 31 | H20: 2506.66 | I20: 250 | J20: 187.24 | K20: 2943.9 | L20: 130.12 | M20: 0 | N20: 0 | O20: 130.12 | P20: 2813.78
A21: 4 | B21: Constructor de Puentes | C21: Sara Adelaida Quevedo Alcántara | D21: 04-2017-031-AMSA | E21: 03/12/2012 | F21: 80.86 | G21: 31 | H21: 2506.66 | I21: 250 | J21: 187.24 | K21: 2943.9 | L21: 130.12 | M21: 0 | N21: 0 | O21: 130.12 | P21: 2813.78
A22: 5 | B22: Constructor de Puentes | C22: Elida Etelvina Obando Hernandez | D22: 05-2017-031-AMSA | E22: 25/10/2013 | F22: 80.86 | G22: 31 | H22: 2506.66 | I22: 250 | J22: 187.24 | K22: 2943.9 | L22: 130.12 | M22: 0 | N22: 0 | O22: 130.12 | P22: 2813.78
A23: 6 | B23: Constructor de Puentes | C23: Yomara Ninett Escobar Calderón | D23: 06-2017-031-AMSA | E23: 03/10/2014 | F23: 80.86 | G23: 31 | H23: 2506.66 | I23: 250 | J23: 187.24 | K23: 2943.9 | L23: 130.12 | M23: 0 | N23: 0 | O23: 130.12 | P23: 2813.78
A24: 7 | B24: Peon Vigilante V | C24: Estuardo Randolfo Gutierrez Cruz | D24: 65-2017-031-AMSA | E24: 2017-03-01 | F24: 75.64 | G24: 31 | H24: 2344.84 | I24: 250 | J24: =11.26*G24 -> 349.06 | K24: =SUM(H24:J24) -> 2943.9 | L24: 130.12 | M24: 0 | N24: 0 | O24: 130.12 | P24: 2813.78
A25: 8 | B25: Peon Vigilante V | C25: Biayner Soto Arana | D25: 66-2017-031-AMSA | E25: 2017-02-20 | F25: 75.64 | G25: 31 | H25: 2344.84 | I25: 250 | J25: =11.26*30 -> 337.8 | K25: 2932.64 | L25: 129.57 | M25: 0 | N25: 0 | O25: 129.57 | P25: 2803.07
A26: 9 | B26: Peon Vigilante V | C26: Werlington Jeffrey Robinzon Alvarado Hernandez | D26: 67-2017-031-AMSA | E26: 2017-02-20 | F26: 75.64 | G26: 31 | H26: 2344.84 | I26: 250 | J26: 337.8 | K26: 2932.64 | L26: 129.57 | M26: 0 | N26: 0 | O26: 129.57 | P26: 2803.07
A27: 10 | B27: Peon Vigilante V | C27: Hamilton Wilfredo Hernández Hernández | D27: 68-2017-031-AMSA | E27: 2017-02-20 | F27: 75.64 | G27: 31 | H27: 2344.84 | I27: 250 | J27: 337.8 | K27: 2932.64 | L27: 129.57 | M27: 0 | N27: 0 | O27: 129.57 | P27: 2803.07
A28: 11 | B28: Peon Vigilante V | C28: Hugo Concepcion Escobar Veliz | D28: 70-2017-031-AMSA | E28: 2017-02-20 | F28: 75.64 | G28: 31 | H28: 2344.84 | I28: 250 | J28: 337.8 | K28: 2932.64 | L28: 129.57 | M28: 0 | N28: 0 | O28: 129.57 | P28: 2803.07
A29: 12 | B29: Peon Vigilante V | C29: Nazario Hernández Osorio | D29: 71-2017-031-AMSA | E29: 2017-02-20 | F29: 75.64 | G29: 31 | H29: 2344.84 | I29: 250 | J29: 337.8 | K29: 2932.64 | L29: 129.57 | M29: 0 | N29: 0 | O29: 129.57 | P29: 2803.07
A30: 13 | B30: Peon Vigilante V | C30: Candido Samayoa y Samayoa | D30: 73-2017-031-AMSA | E30: 2017-02-20 | F30: 75.64 | G30: 31 | H30: 2344.84 | I30: 250 | J30: 337.8 | K30: 2932.64 | L30: 129.57 | M30: 0 | N30: 0 | O30: 129.57 | P30: 2803.07
A31: 14 | B31: Peon Vigilante V | C31: Axel Augusto Lopez De León | D31: 73-2017-031-AMSA | E31: 2017-02-20 | F31: 75.64 | G31: 31 | H31: 2344.84 | I31: 250 | J31: 337.8 | K31: 2932.64 | L31: 129.57 | M31: 0 | N31: 0 | O31: 129.57 | P31: 2803.07
A32: 15 | B32: Peon Vigilante V | C32: Rolando Gonzalez Tahuico | D32: 75-2017-031-AMSA | E32: 2017-02-20 | F32: 75.64 | G32: 31 | H32: 2344.84 | I32: 250 | J32: 337.8 | K32: 2932.64 | L32: 129.57 | M32: 0 | N32: 0 | O32: 129.57 | P32: 2803.07
A33: 16 | B33: Peon Vigilante V | C33: Jose Urias Muñoz | D33: 75-2017-031-AMSA | E33: 2017-02-20 | F33: 75.64 | G33: 31 | H33: 2344.84 | I33: 250 | J33: 337.8 | K33: 2932.64 | L33: 129.57 | M33: 0 | N33: 0 | O33: 129.57 | P33: 2803.07
A34: 17 | B34: Peon Vigilante V | C34: Henry Alejandro Ventura Hernandez | D34: 78-2017-031-AMSA | E34: 2017-02-20 | F34: 75.64 | G34: 31 | H34: 2344.84 | I34: 250 | J34: 337.8 | K34: 2932.64 | L34: 129.57 | M34: 0 | N34: 0 | O34: 129.57 | P34: 2803.07
A35: 18 | B35: Peon Vigilante V | C35: Jorge Adán Arizandieta García | D35: 79-2017-031-AMSA | E35: 2017-02-20 | F35: 75.64 | G35: 31 | H35: 2344.84 | I35: 250 | J35: 337.8 | K35: 2932.64 | L35: 129.57 | M35: 0 | N35: 0 | O35: 129.57 | P35: 2803.07
A36: 19 | B36: Peon Vigilante V | C36: Ricardo Arizandieta García | D36: 80-2017-031-AMSA | E36: 2017-02-20 | F36: 75.64 | G36: 31 | H36: 2344.84 | I36: 250 | J36: 337.8 | K36: 2932.64 | L36: 129.57 | M36: 0 | N36: 0 | O36: 129.57 | P36: 2803.07
A37: 20 | B37: Constructor de Puentes | C37: Rutilia Gomez Lopez | D37: 81-2017-031-AMSA | E37: 2017-05-16 | F37: 75.64 | G37: 31 | H37: 2344.84 | I37: 250 | J37: 337.8 | K37: 2932.64 | L37: 129.57 | M37: 0 | N37: 0 | O37: 129.57 | P37: 2803.07
D38: Totales | H38: =SUM(H18:H37) -> 47867.72 | I38: 5000 | J38: 5863.9 | K38: 58731.62 | L38: 2595.25 | M38: 0 | N38: 0 | O38: 2595.25 | P38: 56136.37
A45: SUBPRODUCTO: CONTROL Y MANEJO DE LOS DESECHOS SÓLIDOS EN LA CUENCA DEL LAGO DE AMATITLÁN 001-002-0005
A46: 11130016-219-00-33-00-000-002-000-031-0115-11-0000-0000
A49: No. | B49: Titulo Jornal Diario | C49: Empleado | D49: Contrato | E49: Fecha de Ingreso | F49: Jornal | G49: Días | H49: Renglón 031 | I49: Renglón 033 | J49: Renglón 033 | K49: Total Devengado Mensual | L49: Deducciones | O49: Total Deducciones | P49: Liquido
L50: 201 | M50: 211 | N50: 120
H51: Jornales | I51: Bono 66-2000 | J51: complemento específico por nivelación | L51: IGSS | M51: Retenciones Judiciales | N51: Decreto 81-70
A52: 1 | B52: Constructor de Puentes | C52: Maynor de Jesús De León Dionicio | D52: 08-2017-031-AMSA | E52: 05/01/2015 | F52: 80.86 | G52: 31 | H52: =F52*G52 -> 2506.66 | I52: 250 | J52: =6.04*G52 -> 187.24 | K52: =SUM(H52:J52) -> 2943.9 | L52: =ROUND((H52+J52)*4.83%,2) -> 130.12 | M52: 0 | N52: 0 | O52: =SUM(L52:N52) -> 130.12 | P52: =+K52-O52 -> 2813.78
A53: 2 | B53: Constructor de Puentes | C53: Cecilio Antonio Vásquez Soto | D53: 09-2017-031-AMSA | E53: 2012-10-02 | F53: 80.86 | G53: 31 | H53: =F53*G53 -> 2506.66 | I53: 250 | J53: =6.04*G53 -> 187.24 | K53: =SUM(H53:J53) -> 2943.9 | L53: =ROUND((H53+J53)*4.83%,2) -> 130.12 | M53: 0 | N53: 0 | O53: =SUM(L53:N53) -> 130.12 | P53: =+K53-O53 -> 2813.78
A54: 3 | B54: Constructor de Puentes | C54: Roberto Romero Peralta | D54: 10-2017-031-AMSA | E54: 17/02/2015 | F54: 80.86 | G54: 31 | H54: 2506.66 | I54: 250 | J54: =6.04*G54 -> 187.24 | K54: =SUM(H54:J54) -> 2943.9 | L54: =ROUND((H54+J54)*4.83%,2) -> 130.12 | M54: 0 | N54: 0 | O54: =SUM(L54:N54) -> 130.12 | P54: =+K54-O54 -> 2813.78
A55: 4 | B55: Constructor de Puentes | C55: Rafael de Jesús Perea Peralta | D55: 11-2017-031-AMSA | E55: 01/01/2016 | F55: 80.86 | G55: 31 | H55: 2506.66 | I55: 250 | J55: =6.04*G55 -> 187.24 | K55: =SUM(H55:J55) -> 2943.9 | L55: =ROUND((H55+J55)*4.83%,2) -> 130.12 | M55: 0 | N55: 0 | O55: =SUM(L55:N55) -> 130.12 | P55: =+K55-O55 -> 2813.78
D56: Totales | H56: =SUM(H52:H55) -> 10026.64 | I56: =SUM(I52:I55) -> 1000 | J56: 748.96 | K56: 11775.6 | L56: 520.48 | M56: 0 | N56: 0 | O56: 520.48 | P56: 11255.12
A66: 11130016-219-00-33-00-000-002-000-031-0115-11-0000-0000
A68: No. | B68: Titulo Jornal Diario | C68: Empleado | D68: Contrato | E68: Fecha de Ingreso | F68: Jornal | G68: Días | H68: Renglón 031 | I68: Renglón 033 | J68: Renglón 033 | K68: Total Devengado Mensual | L68: Deducciones | O68: Total Deducciones | P68: Liquido
L69: 201 | M69: 211 | N69: 120
H70: Jornales | I70: Bono 66-2000 | J70: complemento específico por nivelación | L70: IGSS | M70: Retenciones Judiciales | N70: Decreto 81-70
A71: 1 | B71: Constructor de Puentes | C71: José Filiberto Domingo Domingo | D71: 12-2017-031-AMSA | E71: 2006-01-02 | F71: 80.86 | G71: 31 | H71: =F71*G71 -> 2506.66 | I71: 250 | J71: =6.04*G71 -> 187.24 | K71: =SUM(H71:J71) -> 2943.9 | L71: =ROUND((H71+J71)*4.83%,2) -> 130.12 | M71: 0 | N71: 0 | O71: =SUM(L71:N71) -> 130.12 | P71: =+K71-O71 -> 2813.78
A72: 2 | B72: Constructor de Puentes | C72: Agustín López López | D72: 13-2017-031-AMSA | E72: 2007-01-02 | F72: 80.86 | G72: 31 | H72: 2506.66 | I72: 250 | J72: =6.04*G72 -> 187.24 | K72: 2943.9 | L72: 130.12 | M72: 0 | N72: 0 | O72: 130.12 | P72: 2813.78
A73: 3 | B73: Constructor de Puentes | C73: Nelson Orlando Quiñonez Yohol | D73: 15-2017-031-AMSA | E73: 2005-02-01 | F73: 80.86 | G73: 31 | H73: 2506.66 | I73: 250 | J73: =6.04*G73 -> 187.24 | K73: 2943.9 | L73: 130.12 | M73: 0 | N73: 0 | O73: 130.12 | P73: 2813.78
A74: 4 | B74: Constructor de Puentes | C74: Herculano Colmenar Estrada | D74: 16-2017-031-AMSA | E74: 2003-03-01 | F74: 80.86 | G74: 31 | H74: 2506.66 | I74: 250 | J74: 187.24 | K74: 2943.9 | L74: 130.12 | M74: 0 | N74: 0 | O74: 130.12 | P74: 2813.78
A75: 5 | B75: Constructor de Puentes | C75: Guillermo Apolonio Chuc Mejía | D75: 17-2017-031-AMSA | E75: 2003-05-01 | F75: 80.86 | G75: 31 | H75: 2506.66 | I75: 250 | J75: 187.24 | K75: 2943.9 | L75: 130.12 | M75: 0 | N75: 0 | O75: 130.12 | P75: 2813.78
A76: 6 | B76: Constructor de Puentes | C76: Marcelino Gómez Dávila | D76: 18-2017-031-AMSA | E76: 2003-03-01 | F76: 80.86 | G76: 31 | H76: 2506.66 | I76: 250 | J76: 187.24 | K76: 2943.9 | L76: 130.12 | M76: 0 | N76: 0 | O76: 130.12 | P76: 2813.78
A77: 7 | B77: Constructor de Puentes | C77: Héctor William Martínez Cabrera | D77: 19-2017-031-AMSA | E77: 2007-01-02 | F77: 80.86 | G77: 31 | H77: 2506.66 | I77: 250 | J77: 187.24 | K77: 2943.9 | L77: 130.12 | M77: 0 | N77: 0 | O77: 130.12 | P77: 2813.78
A78: 8 | B78: Constructor de Puentes | C78: Abel Barillas Grajeda | D78: 14-2017-031-AMSA | E78: 2003-04-01 | F78: 80.86 | G78: 31 | H78: 2506.66 | I78: 250 | J78: 187.24 | K78: 2943.9 | L78: 130.12 | O78: 130.12 | P78: 2813.78
A79: 9 | B79: Constructor de Puentes | C79: Napoleon Canahui Pop | D79: 82-2017-031-AMSA | E79: 2017-06-01 | F79: 80.86 | G79: 31 | H79: 2506.66 | I79: 250 | J79: 187.24 | K79: 2943.9 | L79: 130.12 | M79: 0 | N79: 0 | O79: 130.12 | P79: 2813.78
A80: 10 | B80: Constructor de Puentes | C80: Calixto de Jesús Rodríguez Quintero | D80: 20-2017-031-AMSA | E80: 2016-01-01 | F80: 80.86 | G80: 31 | H80: 2506.66 | I80: 250 | J80: 187.24 | K80: 2943.9 | L80: 130.12 | M80: 0 | N80: 0 | O80: 130.12 | P80: 2813.78
D81: Totales | H81: =SUM(H71:H80) -> 25066.6 | I81: =SUM(I71:I80) -> 2500 | J81: =SUM(J64:J80) -> 1872.4 | K81: =SUM(K71:K80) -> 29439 | L81: 1301.2 | M81: 0 | N81: 0 | O81: 1301.2 | P81: 28137.8
A84: SUBPRODUCTO: VOLUMEN DE DESECHOS SÓLIDOS FLOTANTES Y PLANTAS ACUÁTICAS EXTRAÍDOS DEL LAGO DE AMATITLÁN 001-002-0002
A85: 11130016-219-00-33-00-000-002-000-031-0115-11-0000-0000
A87: No. | B87: Titulo Jornal Diario | C87: Empleado | D87: Contrato | E87: Fecha de Ingreso | F87: Jornal | G87: Días | H87: Renglón 031 | I87: Renglón 033 | J87: Renglón 033 | K87: Total Devengado Mensual | L87: Deducciones | O87: Total Deducciones | P87: Liquido
L88: 201 | M88: 211 | N88: 120
H89: Jornales | I89: Bono 66-2000 | J89: complemento específico por nivelación | L89: IGSS | M89: Retenciones Judiciales | N89: Decreto 81-70
A90: 1 | B90: Constructor de Puentes | C90: Flavio Alí Alonso Gil | D90: 22-2017-031-AMSA | E90: 2002-01-02 | F90: 80.86 | G90: 31 | H90: =F90*G90 -> 2506.66 | I90: 250 | J90: =6.04*G90 -> 187.24 | K90: =SUM(H90:J90) -> 2943.9 | L90: =ROUND((H90+J90)*4.83%,2) -> 130.12 | M90: 0 | N90: 0 | O90: =SUM(L90:N90) -> 130.12 | P90: =+K90-O90 -> 2813.78
A91: 2 | B91: Constructor de Puentes | C91: Gerver Oswaldo Suruy Estupe | D91: 23-2017-031-AMSA | E91: 2007-01-02 | F91: 80.86 | G91: 31 | H91: 2506.66 | I91: 250 | J91: 187.24 | K91: 2943.9 | L91: 130.12 | M91: 0 | N91: 0 | O91: 130.12 | P91: 2813.78
A92: 3 | B92: Constructor de Puentes | C92: Andrés Payes Rodríguez | D92: 24-2017-031-AMSA | E92: 2002-01-02 | F92: 80.86 | G92: 31 | H92: 2506.66 | I92: 250 | J92: 187.24 | K92: 2943.9 | L92: 130.12 | M92: 800 | N92: 0 | O92: 930.12 | P92: 2013.78
A93: 4 | B93: Constructor de Puentes | C93: Ignacio Seijas Sequen | D93: 25-2017-031-AMSA | E93: 2006-01-02 | F93: 80.86 | G93: 31 | H93: 2506.66 | I93: 250 | J93: 187.24 | K93: 2943.9 | L93: 130.12 | M93: 0 | N93: 0 | O93: 130.12 | P93: 2813.78
A94: 5 | B94: Constructor de Puentes | C94: Mario Arturo Sigüenza | D94: 26-2017-031-AMSA | E94: 2003-08-01 | F94: 80.86 | G94: 31 | H94: 2506.66 | I94: 250 | J94: 187.24 | K94: 2943.9 | L94: 130.12 | M94: 0 | N94: 0 | O94: 130.12 | P94: 2813.78
A95: 6 | B95: Constructor de Puentes | C95: Carlos Fernando Tello Valdez | D95: 27-2017-031-AMSA | E95: 2002-01-02 | F95: 80.86 | G95: 31 | H95: 2506.66 | I95: 250 | J95: 187.24 | K95: 2943.9 | L95: 130.12 | M95: 0 | N95: 0 | O95: 130.12 | P95: 2813.78
A96: 7 | B96: Constructor de Puentes | C96: Jesús Antonio Montúfar Mazariegos | D96: 28-2017-031-AMSA | E96: 2007-05-02 | F96: 80.86 | G96: 31 | H96: 2506.66 | I96: 250 | J96: 187.24 | K96: 2943.9 | L96: 130.12 | M96: 0 | N96: 0 | O96: 130.12 | P96: 2813.78
A97: 8 | B97: Constructor de Puentes | C97: Carlos Humberto Gatica González | D97: 29-2017-031-AMSA | E97: 2007-05-16 | F97: 80.86 | G97: 31 | H97: 2506.66 | I97: 250 | J97: 187.24 | K97: 2943.9 | L97: 130.12 | M97: 0 | N97: 0 | O97: 130.12 | P97: 2813.78
A98: 9 | B98: Constructor de Puentes | C98: Nery Armando Castañeda Avilés | D98: 30-2017-031-AMSA | E98: 2008-06-09 | F98: 80.86 | G98: 31 | H98: 2506.66 | I98: 250 | J98: 187.24 | K98: 2943.9 | L98: 130.12 | M98: 0 | N98: 0 | O98: 130.12 | P98: 2813.78
A99: 10 | B99: Constructor de Puentes | C99: Yury Geovani Guzmán Avilés | D99: 31-2017-031-AMSA | E99: 2010-01-02 | F99: 80.86 | G99: 31 | H99: 2506.66 | I99: 250 | J99: 187.24 | K99: 2943.9 | L99: 130.12 | M99: 0 | N99: 0 | O99: 130.12 | P99: 2813.78
A100: 11 | B100: Constructor de Puentes | C100: Cosmen Vitalino Obando Montenegro | D100: 32-2017-031-AMSA | E100: 2007-01-02 | F100: 80.86 | G100: 31 | H100: 2506.66 | I100: 250 | J100: 187.24 | K100: 2943.9 | L100: 130.12 | M100: 0 | O100: 130.12 | P100: 2813.78
A101: 12 | B101: Constructor de Puentes | C101: Juan Antonio Roque Dionisio | D101: 33-2017-031-AMSA | E101: 2007-01-02 | F101: 80.86 | G101: 31 | H101: 2506.66 | I101: 250 | J101: 187.24 | K101: 2943.9 | L101: 130.12 | M101: 0 | O101: 130.12 | P101: 2813.78
A102: 13 | B102: Constructor de Puentes | C102: Marlon Geovani Arizandieta Arroyo | D102: 34-2017-031-AMSA | E102: 2013-02-01 | F102: 80.86 | G102: 31 | H102: 2506.66 | I102: 250 | J102: 187.24 | K102: 2943.9 | L102: 130.12 | M102: 0 | O102: 130.12 | P102: 2813.78
A103: 14 | B103: Constructor de Puentes | C103: Erik Leonel Quixaj Ortiz | D103: 35-2017-031-AMSA | E103: 2017-01-01 | F103: 80.86 | G103: 31 | H103: 2506.66 | I103: 250 | J103: 187.24 | K103: 2943.9 | L103: 130.12 | M103: 0 | O103: 130.12 | P103: 2813.78
A104: 15 | B104: Constructor de Puentes | C104: Reyna Elizabeth Toc Choz | D104: 36-2017-031-AMSA | E104: 2014-07-14 | F104: 80.86 | G104: 31 | H104: 2506.66 | I104: 250 | J104: 187.24 | K104: 2943.9 | L104: 130.12 | M104: 0 | O104: 130.12 | P104: 2813.78
A105: 16 | B105: Constructor de Puentes | C105: José Luis Arizandieta Cabrera | D105: 37-2017-031-AMSA | E105: 2016-01-01 | F105: 80.86 | G105: 31 | H105: 2506.66 | I105: 250 | J105: 187.24 | K105: 2943.9 | L105: 130.12 | M105: 0 | O105: 130.12 | P105: 2813.78
D106: Totales | H106: =SUM(H90:H105) -> 40106.56 | I106: =SUM(I90:I105) -> 4000 | J106: =SUM(J87:J105) -> 2995.84 | K106: =SUM(K90:K105) -> 47102.4 | L106: =SUM(L90:L105) -> 2081.92 | M106: =SUM(M90:M105) -> 800 | N106: 0 | O106: 2881.92 | P106: 44220.48
A123: SUBPRODUCTO: REFORESTACIÓN Y MANTENIMIENTO DE ÁREAS EN LA CUENCA DEL LAGO DE AMATITLÁN 001-008-0008
A124: 11130016-219-00-33-00-000-005-000-031-0115-11-0000-0000
A126: No. | B126: Titulo Jornal Diario | C126: Empleado | D126: Contrato | E126: Fecha de Ingreso | F126: Jornal | G126: Días | H126: Renglón 031 | I126: Renglón 033 | J126: Renglón 033 | K126: Total Devengado Mensual | L126: Deducciones | O126: Total Deducciones | P126: Liquido
L127: 201 | M127: 211 | N127: 120
H128: Jornales | I128: Bono 66-2000 | J128: complemento específico por nivelación | L128: IGSS | M128: Retenciones Judiciales | N128: Decreto 81-70
A129: 1 | B129: Constructor de Puentes | C129: Esvin Leonel Rivera Pineda | D129: 38-2017-031-AMSA | E129: 2014-02-17 | F129: 80.86 | G129: 31 | H129: =F129*G129 -> 2506.66 | I129: 250 | J129: =6.04*G129 -> 187.24 | K129: =SUM(H129:J129) -> 2943.9 | L129: =ROUND((H129+J129)*4.83%,2) -> 130.12 | M129: 0 | O129: =SUM(L129:N129) -> 130.12 | P129: =+K129-O129 -> 2813.78
A130: 2 | B130: Constructor de Puentes | C130: José Alberto Rucal | D130: 39-2017-031-AMSA | E130: 2002-01-02 | F130: 80.86 | G130: 31 | H130: 2506.66 | I130: 250 | J130: =6.04*G130 -> 187.24 | K130: 2943.9 | L130: 130.12 | M130: 0 | N130: 0 | O130: 130.12 | P130: 2813.78
A131: 3 | B131: Constructor de Puentes | C131: Julio Roberto Martínez Aguilar | D131: 40-2017-031-AMSA | E131: 2002-01-02 | F131: 80.86 | G131: 31 | H131: 2506.66 | I131: 250 | J131: 187.24 | K131: 2943.9 | L131: 130.12 | M131: 0 | N131: 0 | O131: 130.12 | P131: 2813.78
A132: 4 | B132: Constructor de Puentes | C132: Juan Emilio Cruz De León | D132: 41-2017-031-AMSA | E132: 2015-01-05 | F132: 80.86 | G132: 31 | H132: 2506.66 | I132: 250 | J132: 187.24 | K132: 2943.9 | L132: 130.12 | M132: 0 | N132: 0 | O132: 130.12 | P132: 2813.78
A133: 5 | B133: Constructor de Puentes | C133: Emilio Taque Carranza | D133: 42-2017-031-AMSA | E133: 2013-01-02 | F133: 80.86 | G133: 31 | H133: 2506.66 | I133: 250 | J133: 187.24 | K133: 2943.9 | L133: 130.12 | M133: 0 | N133: 0 | O133: 130.12 | P133: 2813.78
A134: 6 | B134: Constructor de Puentes | C134: Rigoberto de Jesús Osorio Morataya | D134: 43-2017-031-AMSA | E134: 2007-09-01 | F134: 80.86 | G134: 31 | H134: 2506.66 | I134: 250 | J134: 187.24 | K134: 2943.9 | L134: 130.12 | M134: 0 | N134: 0 | O134: 130.12 | P134: 2813.78
A135: 7 | B135: Constructor de Puentes | C135: Manuel de Jesús Coy Malín | D135: 44-2017-031-AMSA | E135: 2002-01-02 | F135: 80.86 | G135: 31 | H135: 2506.66 | I135: 250 | J135: 187.24 | K135: 2943.9 | L135: 130.12 | M135: 0 | N135: 0 | O135: 130.12 | P135: 2813.78
A136: 8 | B136: Constructor de Puentes | C136: Francisco Javier Rivera Orellana | D136: 45-2017-031-AMSA | E136: 2004-07-07 | F136: 80.86 | G136: 31 | H136: 2506.66 | I136: 250 | J136: 187.24 | K136: 2943.9 | L136: 130.12 | M136: 0 | N136: 0 | O136: 130.12 | P136: 2813.78
A137: 9 | B137: Constructor de Puentes | C137: Fermín Hernández Martinez | D137: 46-2017-031-AMSA | E137: 2002-02-01 | F137: 80.86 | G137: 31 | H137: 2506.66 | I137: 250 | J137: 187.24 | K137: 2943.9 | L137: 130.12 | M137: 0 | N137: 0 | O137: 130.12 | P137: 2813.78
A138: 10 | B138: Constructor de Puentes | C138: Víctor Manuel López Rodríguez | D138: 47-2017-031-AMSA | E138: 2005-02-01 | F138: 80.86 | G138: 31 | H138: 2506.66 | I138: 250 | J138: 187.24 | K138: 2943.9 | L138: 130.12 | M138: 0 | N138: 0 | O138: 130.12 | P138: 2813.78
A139: 11 | B139: Constructor de Puentes | C139: Cosme Virgilio Morales Rodríguez | D139: 48-2017-031-AMSA | E139: 2005-01-03 | F139: 80.86 | G139: 31 | H139: 2506.66 | I139: 250 | J139: 187.24 | K139: 2943.9 | L139: 130.12 | M139: 0 | N139: 0 | O139: 130.12 | P139: 2813.78
A140: 12 | B140: Constructor de Puentes | C140: Carlos Alberto Morales Contreras | D140: 49-2017-031-AMSA | E140: 2005-01-03 | F140: 80.86 | G140: 31 | H140: 2506.66 | I140: 250 | J140: 187.24 | K140: 2943.9 | L140: 130.12 | M140: 0 | N140: 0 | O140: 130.12 | P140: 2813.78
A141: 13 | B141: Constructor de Puentes | C141: Miguel Ángel Ramos Luis | D141: 50-2017-031-AMSA | E141: 2002-02-12 | F141: 80.86 | G141: 31 | H141: 2506.66 | I141: 250 | J141: 187.24 | K141: 2943.9 | L141: 130.12 | M141: 0 | N141: 0 | O141: 130.12 | P141: 2813.78
A142: 14 | B142: Constructor de Puentes | C142: Felipe Santiago Carreto | D142: 51-2017-031-AMSA | E142: 2006-01-03 | F142: 80.86 | G142: 31 | H142: 2506.66 | I142: 250 | J142: 187.24 | K142: 2943.9 | L142: 130.12 | M142: 0 | N142: 0 | O142: 130.12 | P142: 2813.78
A143: 15 | B143: Constructor de Puentes | C143: Custodio Quiñonez Morataya | D143: 52-2017-031-AMSA | E143: 2015-11-03 | F143: 80.86 | G143: 31 | H143: 2506.66 | I143: 250 | J143: 187.24 | K143: 2943.9 | L143: 130.12 | M143: 0 | N143: 0 | O143: 130.12 | P143: 2813.78
A144: 16 | B144: Constructor de Puentes | C144: Matilde Arias Cruz | D144: 53-2017-031-AMSA | E144: 2016-01-01 | F144: 80.86 | G144: 31 | H144: 2506.66 | I144: 250 | J144: 187.24 | K144: 2943.9 | L144: 130.12 | M144: 0 | N144: 0 | O144: 130.12 | P144: 2813.78
A145: 17 | B145: Constructor de Puentes | C145: José Muñoz Chávez | D145: 54-2017-031-AMSA | E145: 2016-01-01 | F145: 80.86 | G145: 31 | H145: 2506.66 | I145: 250 | J145: 187.24 | K145: 2943.9 | L145: 130.12 | M145: 0 | N145: 0 | O145: 130.12 | P145: 2813.78
A146: 18 | B146: Constructor de Puentes | C146: Víctor Vicente Paredes González | D146: 55-2017-031-AMSA | E146: 2016-01-01 | F146: 80.86 | G146: 31 | H146: 2506.66 | I146: 250 | J146: 187.24 | K146: 2943.9 | L146: 130.12 | M146: 0 | N146: 0 | O146: 130.12 | P146: 2813.78
A147: 19 | B147: Constructor de Puentes | C147: Antonio Coy Hernandez | D147: 56-2017-031-AMSA | E147: 2016-01-01 | F147: 80.86 | G147: 31 | H147: 2506.66 | I147: 250 | J147: 187.24 | K147: 2943.9 | L147: 130.12 | M147: 0 | N147: 0 | O147: 130.12 | P147: 2813.78
A148: 20 | B148: Constructor de Puentes | C148: Vitelio Catalan Ovando | D148: 57-2017-031-AMSA | E148: 2016-01-01 | F148: 80.86 | G148: 31 | H148: 2506.66 | I148: 250 | J148: 187.24 | K148: 2943.9 | L148: 130.12 | M148: 0 | N148: 0 | O148: 130.12 | P148: 2813.78
D149: Totales | H149: =SUM(H129:H148) -> 50133.2 | I149: =SUM(I129:I148) -> 5000 | J149: 3744.8 | K149: 58878 | L149: 2602.4 | M149: 0 | N149: 0 | O149: 2602.4 | P149: 56275.6
A151: No. | B151: Titulo Jornal Diario | C151: Empleado | D151: Contrato | E151: Fecha de Ingreso | F151: Jornal | G151: Días | H151: Renglón 031 | I151: Renglón 033 | J151: Renglón 033 | K151: Total Devengado Mensual | L151: Deducciones | O151: Total Deducciones | P151: Liquido
L152: 201 | M152: 211 | N152: 120
H153: Jornales | I153: Bono 66-2000 | J153: complemento específico por nivelación | L153: IGSS | M153: Retenciones Judiciales | N153: Decreto 81-70
A154: 1 | B154: Peon Vigilante V | C154: José Luis Perpuac Gómez | D154: 69-2017-031-AMSA | E154: 2017-02-20 | F154: 75.64 | G154: 31 | H154: =F154*G154 -> 2344.84 | I154: 250 | J154: =11.26*G154 -> 349.06 | K154: =SUM(H154:J154) -> 2943.9 | L154: =ROUND((H154+J154)*4.83%,2) -> 130.12 | M154: 0 | N154: 0 | O154: =SUM(L154:N154) -> 130.12 | P154: =+K154-O154 -> 2813.78
